bitfinex/quotes_ETHUSD_20220310
["timestamp","ask_amount","ask_price","bid_price","bid_amount"]
[1646921116171,1.58640261,2586.6,2586.3,1.02363791]
[1646921116372,0.00356517,2586.7,2586.3,1.02363791]
[1646921116827,0.00356517,2586.7,2586.3,1.99084791]
[1646921117028,1.58680659,2586.8,2586.3,1.99084791]
[1646921117430,0.00356519,2586.6,2586.3,1.99084791]
[1646921117735,6.519e-05,2586.6,2586.5,1.33766641]
[1646921117933,6.519e-05,2586.6,2586.5,6.78279]
[1646921118133,6.519e-05,2586.6,2586.5,6.97609]
[1646921118332,0.00206214,2587.3,2586.8,0.384]
[1646921118533,0.04035807,2587.4,2587.0,0.96662]
[1646921118734,0.04035807,2587.4,2587.2,1.18126127]
[1646921118932,0.04035807,2587.4,2587.3,0.461]
[1646921119232,0.04035807,2587.4,2587.3,0.761]
[1646921120134,0.04035807,2587.4,2587.3,1.145]
[1646921120385,0.04035807,2587.4,2587.3,0.761]
[1646921120582,0.04035807,2587.4,2587.3,0.461]
[1646921120781,0.04035807,2587.4,2587.1,4.8329737]
[1646921120981,0.04035807,2587.4,2587.2,0.96666]
[1646921121183,0.04035807,2587.4,2587.2,2.899796]
[1646921121382,0.04035807,2587.4,2587.2,0.966566]
[1646921121983,0.04035807,2587.4,2587.3,1.11484824]
[1646921122384,0.04035807,2587.4,2587.3,1.41484824]
[1646921122583,0.04035807,2587.4,2587.2,3.360726]
[1646921122787,0.04035807,2587.4,2587.2,0.461]
[1646921122990,0.04035807,2587.4,2587.0,1.9332]
[1646921123388,0.04035807,2587.4,2586.7,1.93375]
[1646921123688,0.04035807,2587.4,2586.8,1.16358129]
[1646921123893,0.04035807,2587.4,2586.9,0.845]
[1646921124119,0.04035807,2587.4,2586.9,0.761]
[1646921124726,0.04035807,2587.4,2586.9,0.845]
[1646921124926,0.04035807,2587.4,2586.9,0.761]
[1646921125827,0.00358572,2587.3,2586.9,0.761]
[1646921126427,0.00358572,2587.3,2587.2,0.91906239]
[1646921126630,0.04035807,2587.4,2586.9,0.761]
[1646921127029,0.00358574,2587.2,2586.9,0.761]
[1646921127629,0.00358574,2587.2,2586.9,0.3]
[1646921127873,0.04035807,2587.4,2586.7,1.93375]
[1646921128075,1.53535751,2587.3,2586.7,1.93375]
[1646921128271,0.00358575,2587.2,2586.8,0.07623102]
[1646921128670,0.00358575,2587.2,2586.7,1.93620752]
[1646921129070,1.72857072,2587.3,2586.7,1.93375]
[1646921129272,1.5360734,2587.2,2586.7,1.93375]
[1646921129472,0.00358577,2587.1,2586.9,0.06888462]
[1646921129670,0.00358577,2587.1,2586.9,0.45288462]
[1646921130070,0.00358577,2587.1,2586.9,0.845]
[1646921130273,0.04035807,2587.4,2587.0,0.06946554]
[1646921130472,0.04035807,2587.4,2587.2,1.23258856]
[1646921131519,0.02066342,2587.7,2587.3,106.07377369]
[1646921131725,0.02066342,2587.7,2587.4,0.684]
[1646921131921,0.02066342,2587.7,2587.5,2.39395]
[1646921132123,0.02066342,2587.7,2587.6,0.9956137]
[1646921132326,0.02066342,2587.7,2587.6,1.21686115]
[1646921132928,0.02066342,2587.7,2587.6,1.60086115]
[1646921133333,0.02066342,2587.7,2587.6,3.02834115]
[1646921133730,0.02066342,2587.7,2587.6,4.02834115]
[1646921133930,0.017557,2587.9,2587.8,29.384]
[1646921134130,0.017557,2587.9,2587.8,0.761]
[1646921135869,0.017557,2587.9,2587.8,1.72732]
[1646921136474,0.017557,2587.9,2587.8,5.42052]
[1646921136475,5.7e-05,2587.9,2587.8,5.42052]
[1646921136666,0.00286268,2588.0,2587.9,91.5]
[1646921136867,0.0309292,2588.5,2588.0,21.5]
[1646921137066,0.0309292,2588.5,2588.3,1.93217]
[1646921137270,0.01170592,2588.9,2588.5,0.384]
[1646921137470,4.37454364,2589.2,2588.7,0.384]
[1646921137672,4.37454364,2589.2,2588.9,0.9657342]
[1646921137673,1.53823953,2589.1,2588.9,0.9657342]
[1646921137871,1.53823953,2589.1,2588.5,0.3]
[1646921138269,1.53823953,2589.1,2588.4,2.12484]
[1646921138474,2.24553108,2589.1,2588.4,2.12484]
[1646921138677,2.24553108,2589.1,2588.4,0.193]
[1646921138873,1.53823953,2589.0,2588.4,0.193]
[1646921139118,0.00284434,2588.9,2588.3,1.26624]
[1646921139319,0.00284434,2588.9,2588.3,0.96624]
[1646921139528,2.24837542,2588.9,2588.3,0.96624]
[1646921139718,2.24837542,2588.9,2588.5,0.5]
[1646921139719,1.5871754,2588.8,2588.5,0.5]
[1646921139921,12.46354773,2588.9,2588.5,0.5]
[1646921139922,1.9211135,2588.7,2588.5,0.5]
[1646921140120,0.7421202,2588.4,2588.2,2.51481946]
[1646921140323,1.59045641,2588.3,2587.7,0.9496]
[1646921140521,1.59045641,2588.3,2586.9,5.6332]
[1646921140522,1.58669848,2588.2,2586.9,5.6332]
[1646921140723,0.384,2588.0,2586.5,6.5334]
[1646921141030,1.77483636,2587.9,2586.6,1.9338]
[1646921141223,1.13488385,2587.7,2586.8,1.0275552]
[1646921141421,1.53823953,2587.6,2586.8,1.0275552]
[1646921141624,0.04639653,2587.8,2587.4,0.00255835]
[1646921141625,1.53823953,2587.5,2587.4,0.00255835]
[1646921141821,1.58579859,2587.5,2587.4,0.00255835]
[1646921142022,1.58165213,2587.5,2587.4,0.00255835]
[1646921142421,1.53823953,2587.5,2587.2,0.96689]
[1646921142621,1.53823953,2587.5,2587.3,0.00255845]
[1646921143268,0.04777127,2587.4,2587.3,0.00255845]
[1646921143467,0.04777127,2587.4,2587.1,1.19277067]
[1646921143468,10.0,2587.3,2587.1,1.19277067]
[1646921143676,0.04777127,2587.4,2587.1,1.19277067]
[1646921143868,0.04777127,2587.4,2586.4,0.07446405]
[1646921143869,2.0,2587.2,2586.4,0.07446405]
[1646921144070,2.0,2587.2,2586.6,1.9341]
[1646921145467,2.0,2587.2,2586.6,2.02469575]
[1646921145669,2.0,2587.2,2586.7,1.17717399]
[1646921146516,2.0,2587.2,2586.8,0.07155434]
[1646921146919,0.00205336,2587.8,2587.0,0.384]
[1646921147116,0.13819997,2587.9,2587.3,0.96664]
[1646921147315,1.52997411,2587.8,2587.6,1.01008728]
[1646921147516,1.52997411,2587.8,2587.4,0.07627915]
[1646921147717,1.52997411,2587.8,2587.2,0.08168801]
[1646921148620,1.52997411,2587.8,2587.4,0.89739735]
[1646921149421,1.52997411,2587.8,2587.2,0.96895076]
[1646921149624,13.64397411,2587.8,2587.1,1.93336]
[1646921149821,1.52997411,2587.7,2587.2,0.00204696]
[1646921150028,0.05138239,2587.6,2587.2,0.00204696]
[1646921150281,2.9006952,2587.4,2587.2,0.00204696]
[1646921150484,0.3,2587.3,2587.2,0.00204696]
[1646921150884,0.3,2587.3,2586.7,0.98339511]
[1646921151085,0.04514686,2587.4,2586.4,0.28371856]
[1646921151288,0.9671086,2586.5,2586.4,0.08978819]
[1646921151489,0.9671086,2586.5,2586.1,2.90096]
[1646921151693,0.9671086,2586.5,2586.2,0.15427822]
[1646921151890,0.3,2586.5,2586.2,0.07408989]
[1646921152387,0.9671236,2586.4,2586.2,0.07408989]
[1646921152688,0.00205336,2587.0,2586.2,0.07408989]
[1646921152887,0.3,2586.8,2586.2,0.07408989]
[1646921153088,1.9340812,2586.8,2586.3,0.08019049]
[1646921153286,1.9340812,2586.8,2586.4,1.16269768]
[1646921153487,1.9339498,2586.8,2586.2,0.07408989]
[1646921153688,0.9669498,2586.8,2586.5,0.00254777]
[1646921154314,0.9669498,2586.8,2586.3,1.93388]
[1646921154513,0.9669498,2586.8,2586.3,3.15642962]
[1646921154714,0.9669498,2586.8,2586.5,0.00254772]
[1646921154715,1.9339498,2586.8,2586.5,0.00254772]
[1646921155515,0.967,2586.8,2586.3,2.93388]
[1646921155715,0.9670647,2586.5,2586.3,1.93388]
[1646921156115,1.2670647,2586.5,2586.3,1.93388]
[1646921157120,1.2670647,2586.5,2586.3,1.93642797]
[1646921157322,0.9670647,2586.5,2586.3,1.93642797]
[1646921157523,1.2670647,2586.5,2586.3,1.93642797]
[1646921157771,1.2670647,2586.5,2586.3,0.00254797]
[1646921157974,1.2670647,2586.5,2586.2,0.967]
[1646921158276,1.2670647,2586.5,2586.3,0.00226769]
[1646921158674,12.69230614,2586.4,2586.3,0.00226769]
[1646921158874,0.9676067,2585.7,2585.5,0.3855]
[1646921159076,0.384,2585.8,2585.0,0.60777421]
[1646921159281,0.05012805,2585.5,2584.8,0.96771]
[1646921159473,1.9354362,2585.1,2584.6,0.07241501]
[1646921159674,2.2354362,2585.1,2584.6,1.93531]
[1646921159874,1.2678,2585.1,2584.3,0.06765442]
[1646921160073,0.04898483,2585.0,2584.3,0.06765442]
[1646921160277,0.04898483,2585.0,2584.2,0.93439505]
[1646921160278,0.34898483,2585.0,2584.2,0.93439505]
[1646921160474,1.9357367,2584.7,2584.2,0.93439505]
[1646921160877,1.9357367,2584.7,2584.4,1.93554]
[1646921161078,0.1933,2585.8,2584.4,2.39654]
[1646921161274,3.8,2585.7,2584.6,0.08797053]
[1646921161515,3.8,2585.7,2584.2,2.79026624]
[1646921161516,0.04760362,2585.5,2584.2,2.79026624]
[1646921161713,0.34760362,2585.5,2584.2,1.85234352]
[1646921161916,0.97146321,2585.3,2584.2,1.46834352]
[1646921162114,0.04650705,2585.2,2584.5,1.93532]
[1646921162723,0.9677824,2584.7,2584.5,1.93532]
[1646921163121,1.31792475,2584.7,2584.5,1.93532]
[1646921163920,0.05014235,2584.7,2584.5,1.93532]
[1646921164122,0.9676919,2584.9,2584.5,1.93532]
[1646921164321,0.34503479,2584.8,2584.5,1.93769049]
[1646921164727,0.34503479,2584.8,2584.6,0.96765]
[1646921164728,0.49970179,2584.8,2584.6,0.96765]
[1646921164922,0.34503479,2584.8,2584.6,0.96765]
[1646921165122,0.96773,2584.9,2584.7,1.06348057]
[1646921165369,1.9355131,2585.0,2584.3,0.06782904]
[1646921165565,1.98814005,2585.0,2584.6,0.0023704]
[1646921166165,1.9355131,2585.0,2584.6,0.0023704]
[1646921166366,0.04529966,2584.9,2584.6,0.0023704]
[1646921166569,1.31300136,2584.9,2584.6,0.0023704]
[1646921166771,0.96771,2584.9,2584.7,0.00237031]
[1646921167173,1.26771,2584.9,2584.7,0.00237031]
[1646921167371,0.3,2584.9,2584.7,0.00237031]
[1646921167571,0.34956952,2585.0,2584.1,1.93557]
[1646921167770,0.34956952,2585.0,2584.1,2.90341]
[1646921167771,0.967858,2584.7,2584.1,2.90341]
[1646921167975,0.3,2584.8,2584.1,2.90341]
[1646921168172,0.3,2584.8,2584.1,2.93557]
[1646921168173,0.05187303,2584.8,2584.1,2.93557]
[1646921168373,0.1933,2585.5,2584.5,2.51570958]
[1646921168575,0.1933,2585.5,2584.8,0.03359254]
[1646921168576,3.54347767,2585.5,2584.8,0.03359254]
[1646921168775,0.154669,2584.9,2584.8,0.03359254]
[1646921169025,0.96757,2585.2,2584.8,0.03359254]
[1646921169216,0.96757,2585.2,2584.9,0.00200473]
[1646921170016,0.96757,2585.2,2584.8,0.03359254]
[1646921170217,0.9677477,2585.0,2584.9,0.00200469]
[1646921171122,1.2677477,2585.0,2584.9,0.00200469]
[1646921171324,0.3,2584.9,2584.8,0.02287763]
[1646921171525,0.3,2584.9,2584.8,0.02496461]
[1646921172523,0.3,2584.9,2584.8,0.02287763]
[1646921173576,15.53,2584.9,2584.8,0.02287763]
[1646921173778,0.4933,2584.9,2584.8,0.02287763]
[1646921174176,0.3,2584.9,2584.8,0.02287763]
[1646921174375,0.3,2584.9,2584.8,0.03401032]
[1646921174775,3.8,2584.9,2584.8,0.03401032]
[1646921175377,15.53,2584.9,2584.8,0.03401032]
[1646921175779,15.7233,2584.9,2584.8,0.03401032]
[1646921176378,15.878001,2584.9,2584.8,0.03401032]
[1646921176842,15.7233,2584.9,2584.8,0.03401032]
[1646921177439,0.384,2584.8,2583.7,1.93594]
[1646921177643,11.73,2584.8,2584.7,6.856e-05]
[1646921177845,22.11349812,2584.8,2584.7,6.856e-05]
[1646921178250,1.9365793,2583.8,2583.5,0.002]
[1646921178447,3.5,2583.7,2583.5,0.002]
[1646921178645,0.3,2583.7,2583.5,0.002]
[1646921178848,1.0919693,2583.6,2583.5,0.002]
[1646921179245,1.3919693,2583.6,2583.5,0.002]
[1646921180374,2.5152313,2583.6,2583.5,0.002]
[1646921180773,2.3604693,2583.6,2583.5,0.002]
[1646921180975,0.3,2583.6,2583.5,0.002]
[1646921181375,2.2365986,2583.8,2583.5,0.002]
[1646921181584,0.04760252,2583.6,2582.8,0.30363]
[1646921181775,0.3897665,2583.7,2582.6,0.07341309]
[1646921181989,0.3897665,2583.7,2582.3,3.90456]
[1646921181990,0.04451562,2583.6,2582.4,0.0752652]
[1646921182275,0.98428311,2583.5,2583.1,0.0025242]
[1646921182579,0.5811076,2583.4,2583.1,0.0025242]
[1646921182785,1.98229996,2583.6,2583.1,0.0025242]
[1646921182786,0.3,2583.3,2583.1,0.0025242]
[1646921182981,11.1085,2584.1,2583.1,0.0025242]
[1646921183183,3.5,2584.0,2583.1,0.0025242]
[1646921183383,1.29301978,2584.1,2583.8,1.19009101]
[1646921183384,1.2416,2584.1,2583.8,1.19009101]
[1646921183584,0.04613031,2584.5,2583.9,0.07292604]
[1646921183786,3.0638,2584.8,2584.0,0.461]
[1646921184031,2.2973,2585.1,2584.1,0.07152718]
[1646921184220,0.1933,2585.1,2584.1,0.07152718]
[1646921184419,0.23900067,2585.1,2584.4,0.90309563]
[1646921184621,0.9678381,2584.8,2584.4,0.90309563]
[1646921184924,0.1933,2585.4,2584.6,0.96771]
[1646921185121,2.72799997,2585.6,2584.8,0.08392204]
[1646921185323,0.33149997,2585.6,2584.8,0.08392204]
[1646921185521,0.9674365,2585.9,2584.9,0.461]
[1646921185522,0.5834365,2585.9,2584.9,0.461]
[1646921185723,0.5834365,2585.9,2585.5,1.06356655]
[1646921185921,0.5834365,2585.9,2585.7,0.96722]
[1646921186423,0.5834365,2585.9,2584.9,0.461]
[1646921186721,0.5834365,2585.9,2585.0,0.08077602]
[1646921186921,0.95810221,2585.9,2585.0,0.92548459]
[1646921187121,0.5834365,2585.9,2585.1,0.07463412]
[1646921187421,0.5834365,2585.9,2585.1,0.45863412]
[1646921187877,0.5834365,2585.9,2585.4,0.96731]
[1646921188073,0.5834365,2585.9,2585.5,2.24053788]
[1646921188273,15.0,2586.0,2585.7,0.08910896]
[1646921188675,15.0,2586.0,2585.4,0.0752006]
[1646921188676,0.9674076,2585.9,2585.4,0.0752006]
[1646921188877,15.3,2586.0,2584.8,0.461]
[1646921189075,15.3,2586.0,2584.9,0.080965]
[1646921189273,15.3,2586.0,2585.1,0.03109058]
[1646921189479,15.3,2586.0,2585.1,0.06244923]
[1646921189676,15.3,2586.0,2585.4,0.08782352]
[1646921190875,16.2673599,2586.0,2585.6,0.074476]
[1646921191375,0.09932321,2585.5,2585.3,1.09146806]
[1646921191618,0.09932321,2585.5,2585.4,0.0702573]
[1646921192219,0.09932321,2585.5,2585.2,0.07387179]
[1646921192421,0.09932321,2585.5,2585.1,0.06244923]
[1646921193028,1.06690011,2585.5,2585.1,0.06244923]
[1646921193228,0.3,2585.4,2585.1,0.06244923]
[1646921193627,0.09932321,2585.5,2585.1,0.06244923]
[1646921194027,0.09932321,2585.5,2585.1,0.52344923]
[1646921194228,0.09932321,2585.5,2585.4,1.11708591]
[1646921194629,0.09932321,2585.5,2585.3,1.93461]
[1646921195027,0.09932321,2585.5,2585.0,0.06986486]
[1646921195273,0.09932321,2585.5,2584.9,1.93491]
[1646921195676,0.09932321,2585.5,2584.8,1.93506]
[1646921196071,0.09932321,2585.5,2585.1,0.96748]
[1646921196672,0.39932321,2585.5,2585.2,0.06420467]
[1646921196874,0.09932321,2585.5,2585.2,0.06420467]
[1646921198680,0.09932321,2585.5,2585.3,0.96736]
[1646921199121,0.09932321,2585.5,2585.4,3.96005523]
[1646921199319,0.09932321,2585.5,2585.4,0.53705523]
[1646921202218,0.09932321,2585.5,2585.1,3.19058094]
[1646921202418,0.09932321,2585.5,2585.1,2.22313094]
[1646921202619,0.09932321,2585.5,2585.1,1.25565094]
[1646921202874,0.09932321,2585.5,2585.1,0.0669099]
[1646921203479,0.15296197,2585.5,2585.1,0.0669099]
[1646921203674,0.15296197,2585.5,2585.4,0.12408263]
[1646921204674,0.09932321,2585.5,2585.4,0.12408263]
[1646921205376,0.15121461,2585.5,2585.4,0.12408263]
[1646921206374,1.70382208,2585.5,2585.4,0.12408263]
[1646921207029,13.43382208,2585.5,2585.4,0.12408263]
[1646921207230,13.43382208,2585.5,2584.6,0.00205936]
[1646921207231,0.9677908,2584.8,2584.6,0.00205936]
[1646921207531,0.96787,2584.8,2584.3,0.9496]
[1646921207729,1.26787,2584.8,2584.6,0.00205936]
[1646921207934,0.30583271,2584.7,2584.6,0.00205936]
[1646921208534,0.30583271,2584.7,2584.3,0.9496]
[1646921208736,0.9680059,2584.5,2584.3,0.9496]
[1646921208933,1.9359959,2584.5,2584.3,0.9496]
[1646921209132,2.2359959,2584.5,2584.3,0.9496]
[1646921210135,13.9660658,2584.5,2584.3,0.00205962]
[1646921210371,1.16149,2584.4,2584.3,0.00205962]
[1646921210568,2.2360658,2584.5,2584.3,0.00205962]
[1646921210972,2.2360658,2584.5,2583.9,0.5]
[1646921211169,1.26799,2584.5,2583.9,0.5]
[1646921211371,1.46129,2584.5,2584.2,0.00205966]
[1646921211570,1.18882469,2584.4,2584.2,0.00205966]
[1646921211768,1.46129,2584.5,2584.2,0.00205966]
[1646921211968,0.9680147,2584.3,2584.2,0.00205966]
[1646921212168,0.3,2584.2,2584.1,1.0]
[1646921212669,0.3,2584.2,2584.1,2.04546612]
[1646921212875,0.3,2584.2,2584.1,1.0]
[1646921213373,1.2679393,2584.5,2584.1,1.0]
[1646921214036,1.26793,2584.5,2584.1,1.0]
[1646921214224,0.87181549,2584.7,2584.4,0.05349198]
[1646921215021,0.57181549,2584.7,2584.4,0.05349198]
[1646921215625,1.9360182,2584.6,2584.4,0.05349198]
[1646921215825,0.05165869,2584.3,2584.1,1.0]
[1646921216224,1.01973859,2584.3,2584.1,1.0]
[1646921216628,0.3,2584.2,2584.1,1.0]
[1646921217228,0.3,2584.2,2584.1,1.00226775]
[1646921218277,0.3,2584.2,2584.1,1.0]
[1646921221533,12.41671028,2584.2,2584.1,1.0]
[1646921221724,65.23,2584.1,2583.9,0.5]
[1646921221928,0.9682475,2584.0,2583.9,0.5]
[1646921222424,0.9682475,2584.0,2582.7,1.16152]
[1646921222625,0.53409811,2583.8,2582.9,1.19963032]
[1646921223329,0.53409811,2583.8,2583.2,0.00244919]
[1646921223731,0.9682867,2583.4,2583.2,0.00244919]
[1646921224230,0.9682867,2583.4,2582.7,0.1933]
[1646921224435,0.96828,2583.5,2583.2,0.0025241]
[1646921224630,1.1732,2583.9,2583.2,0.0025241]
[1646921224831,1.7534481,2583.9,2583.2,0.0025241]
[1646921225274,3.6898567,2583.9,2583.2,0.0025241]
[1646921225474,3.6898567,2583.9,2582.7,0.27121742]
[1646921225475,0.92080839,2583.7,2582.8,0.97385894]
[1646921225674,0.92080839,2583.7,2582.7,0.27121742]
[1646921225675,0.92080839,2583.7,2583.4,0.00252386]
[1646921226281,1.9253395,2583.6,2583.4,0.00252386]
[1646921226478,1.6859995,2583.6,2583.4,0.00252386]
[1646921226675,1.6859995,2583.6,2582.6,0.1935]
[1646921226676,0.9682749,2583.3,2582.6,0.1935]
[1646921226876,0.9682749,2583.3,2582.6,0.26100083]
[1646921227678,0.9682749,2583.3,2582.8,1.11250496]
[1646921227881,1.98737207,2583.5,2582.6,0.26100083]
[1646921227882,0.968349,2583.1,2582.6,0.26100083]
[1646921228083,0.968349,2583.1,2582.6,0.06750083]
[1646921228484,0.968349,2583.1,2582.5,0.4435]
[1646921228685,1.02066961,2583.1,2582.5,0.4435]
[1646921228882,1.02066961,2583.1,2582.5,0.1935]
[1646921229120,0.9683774,2582.9,2582.5,0.1935]
[1646921229319,0.9683774,2582.9,2582.7,0.04595436]
[1646921229523,1.98908061,2583.1,2582.7,0.93653292]
[1646921229923,1.93676,2583.1,2582.7,0.93653292]
[1646921230726,0.9683,2583.2,2582.8,4.34086108]
[1646921230924,0.9683,2583.2,2582.9,0.845]
[1646921231123,0.9683,2583.2,2583.0,0.06357745]
[1646921231326,0.9683,2583.2,2583.0,0.25707745]
[1646921231925,1.93676,2583.1,2583.0,0.25707745]
[1646921232124,1.93676,2583.1,2582.9,0.00251804]
[1646921232526,1.93676,2583.1,2582.8,0.91056972]
[1646921232770,1.93676,2583.1,2582.9,0.26650923]
[1646921232977,1.93676,2583.1,2582.9,0.07552732]
[1646921233579,1.93676,2583.1,2582.9,0.21427047]
[1646921233779,1.93676,2583.1,2582.9,0.21175238]
[1646921233979,1.93676,2583.1,2582.9,0.21427047]
[1646921234980,1.93676,2583.1,2582.9,0.21175238]
[1646921235579,0.25807475,2583.1,2583.0,0.07891969]
[1646921235778,0.25807475,2583.1,2583.0,0.53991969]
[1646921236626,0.9683,2583.2,2583.0,0.53991969]
[1646921237830,2.23612,2583.4,2583.1,2.1085065]
[1646921238031,2.23612,2583.4,2583.2,0.461]
[1646921239131,0.05611145,2583.3,2583.2,0.46322825]
[1646921239331,2.23612,2583.4,2583.2,0.46322825]
[1646921239332,3.204296,2583.4,2583.2,0.46322825]
[1646921239732,2.23612,2583.4,2583.2,0.46322825]
[1646921240137,2.23612,2583.4,2583.2,0.46318708]
[1646921240584,2.56850647,2583.9,2583.2,0.46318708]
[1646921240585,0.96805,2583.5,2583.2,0.46318708]
[1646921241182,0.96805,2583.5,2583.2,0.461]
[1646921241382,0.96805,2583.5,2583.2,0.46318704]
[1646921242183,0.96805,2583.5,2583.2,0.461]
[1646921242583,0.9681732,2583.4,2583.2,0.46318704]
[1646921242787,1.2681732,2583.4,2583.2,0.46318704]
[1646921242987,1.2681732,2583.4,2583.2,0.00218704]
[1646921243586,1.2681732,2583.4,2583.0,0.08939238]
[1646921243788,1.9366745,2583.2,2583.0,0.08939238]
[1646921244223,1.98471955,2583.2,2582.9,0.04459558]
[1646921244423,3.56050933,2583.1,2582.9,0.04459558]
[1646921244623,32.0,2583.0,2582.9,0.04459558]
[1646921244822,3.1280745,2583.2,2582.9,0.04459558]
[1646921245022,1.60610263,2583.1,2582.9,0.04661518]
[1646921245827,1.60610263,2583.1,2582.9,0.04459558]
[1646921246025,0.1935,2583.0,2582.9,0.04459558]
[1646921246228,3.6935,2583.0,2582.9,0.04661522]
[1646921246428,3.6935,2583.0,2581.9,0.3874]
[1646921246429,1.9373434,2582.5,2581.9,0.3874]
[1646921246632,3.5,2582.4,2581.9,0.3874]
[1646921246827,0.1935,2582.4,2581.9,0.3874]
[1646921247026,3.6935,2582.4,2581.9,0.3874]
[1646921247428,3.2907886,2582.3,2581.3,0.5]
[1646921247627,3.884,2582.2,2581.3,0.5]
[1646921247880,2.9067886,2582.3,2581.7,1.0]
[1646921248480,6.4067886,2582.3,2581.7,1.0]
[1646921248880,2.9067886,2582.3,2581.7,2.22712403]
[1646921249081,0.9689927,2581.9,2581.0,0.07198978]
[1646921249281,3.5,2582.3,2581.7,1.0]
[1646921249482,1.1602,2582.2,2581.7,1.0]
[1646921249682,0.384,2582.3,2581.1,0.07984724]
[1646921249883,0.384,2582.3,2581.1,0.54084724]
[1646921250084,0.384,2582.3,2581.3,0.9688]
[1646921250284,0.56897753,2582.4,2581.6,1.15178111]
[1646921250687,0.95297753,2582.4,2581.6,1.15178111]
[1646921250884,0.95297753,2582.4,2581.7,0.00250791]
[1646921251285,0.95297753,2582.4,2582.0,0.96394423]
[1646921251286,0.9687826,2582.1,2582.0,0.96394423]
[1646921251541,0.56897753,2582.4,2582.0,0.96394423]
[1646921252729,0.56897753,2582.4,2582.1,0.53795633]
[1646921253932,0.86897753,2582.4,2582.1,0.53795633]
[1646921256378,0.86897753,2582.4,2581.8,0.06761629]
[1646921256379,0.92018123,2582.4,2581.8,0.06761629]
[1646921256776,0.86897753,2582.4,2581.8,0.06761629]
[1646921257780,1.83758753,2582.4,2581.8,1.13342649]
[1646921257983,1.83758753,2582.4,2581.8,1.21418664]
[1646921258184,2.80620913,2582.4,2581.8,1.20990867]
[1646921258383,1.83758753,2582.4,2581.8,0.06333832]
[1646921258588,0.04735998,2582.3,2581.8,0.06333832]
[1646921258784,0.04832204,2582.1,2581.8,0.06333832]
[1646921259225,1.01707164,2582.1,2581.8,0.06333832]
[1646921259624,0.04832204,2582.1,2581.6,0.03212274]
[1646921260626,0.04832204,2582.1,2581.6,0.03436804]
[1646921261333,1.9376421,2581.9,2581.6,0.03436804]
[1646921261531,1.9376421,2581.9,2581.6,0.03212274]
[1646921261727,1.9376421,2581.9,2581.6,0.03436804]
[1646921262127,0.05820713,2581.7,2581.6,0.03436804]
[1646921262328,0.05820713,2581.7,2581.6,0.0279605]
[1646921262881,0.05820713,2581.7,2581.6,0.0257152]
[1646921264183,0.96882,2581.9,2581.6,0.0257152]
[1646921264784,0.9688174,2581.9,2581.8,0.03238529]
[1646921266186,1.907642,2581.9,2581.8,0.03238529]
[1646921267027,0.9688174,2581.9,2581.8,0.03238529]
[1646921267630,1.93763,2582.0,2581.8,0.03238529]
[1646921267833,2.09447753,2582.4,2581.9,0.461]
[1646921267834,1.71047753,2582.4,2581.9,0.461]
[1646921268030,0.56897753,2582.4,2581.9,0.461]
[1646921268631,0.56897753,2582.4,2582.0,0.96853]
[1646921268832,0.56897753,2582.4,2582.1,1.42948]
[1646921269433,0.56897753,2582.4,2582.2,1.06285248]
[1646921269832,0.56897753,2582.4,2582.1,0.461]
[1646921270884,0.56897753,2582.4,2582.2,1.00066475]
[1646921271085,0.86897753,2582.4,2582.2,1.00066475]
[1646921271486,0.86897753,2582.4,2582.2,1.46166475]
[1646921272085,0.86897753,2582.4,2582.2,0.461]
[1646921272486,1.53753753,2582.4,2582.2,0.461]
[1646921272689,12.7186,2583.1,2582.2,0.461]
[1646921272690,12.1411,2583.1,2582.2,0.461]
[1646921273090,12.1411,2583.1,2582.2,0.52928157]
[1646921273690,12.1411,2583.1,2582.4,0.93204697]
[1646921273891,11.0,2583.1,2582.5,0.461]
[1646921274133,11.0,2583.1,2582.2,0.06828157]
[1646921274134,0.384,2582.9,2581.8,0.06417699]
[1646921274331,3.5,2583.0,2581.8,0.06417699]
[1646921274332,0.384,2582.7,2581.8,0.06417699]
[1646921274532,0.684,2582.7,2581.8,0.06417699]
[1646921274729,0.684,2582.7,2581.6,0.00203475]
[1646921274730,0.4935,2582.7,2582.3,0.06106456]
[1646921275030,0.10461837,2582.2,2582.1,0.03007248]
[1646921275430,0.15490512,2582.2,2582.1,0.03007248]
[1646921278081,0.690235,2582.2,2582.1,0.03007248]
[1646921279381,0.690235,2582.2,2582.1,0.11512532]
[1646921282632,0.690235,2582.2,2582.1,0.57612532]
[1646921283431,0.690235,2582.2,2582.1,1.77639576]
[1646921284033,0.10461837,2582.2,2582.1,2.74487576]
[1646921284534,11.0,2583.1,2582.1,14.65860532]
[1646921284738,11.0,2583.1,2582.3,11.73]
[1646921284933,11.0,2583.1,2582.4,12.191]
[1646921285377,0.57834403,2583.2,2582.7,1.93629]
[1646921285580,0.57834403,2583.2,2583.0,1.21596562]
[1646921285780,0.57834403,2583.2,2583.1,0.461]
[1646921288081,0.57834403,2583.2,2582.7,0.461]
[1646921288283,0.57834403,2583.2,2582.3,0.25]
[1646921288284,0.9684494,2582.9,2582.6,0.461]
[1646921288582,2.14984487,2583.0,2582.2,0.9818535]
[1646921288786,0.05999008,2582.8,2582.1,0.30862532]
[1646921289062,1.99006604,2582.9,2582.1,0.30862532]
[1646921289063,1.65861118,2582.7,2582.1,0.11512532]
[1646921289245,3.884,2582.9,2582.1,0.11512532]
[1646921289246,1.6555569,2582.6,2582.1,0.11512532]
[1646921289445,0.1935,2582.8,2581.8,1.0]
[1646921289446,1.66474783,2582.5,2581.8,1.0]
[1646921289646,1.66158586,2582.4,2581.8,1.0]
[1646921289851,0.05551982,2582.4,2581.8,1.0]
[1646921291349,0.9687053,2582.2,2581.8,1.0]
[1646921292556,1.02683388,2582.1,2581.8,1.0]
[1646921292781,0.05089716,2582.0,2581.8,1.0]
[1646921293784,0.05089716,2582.0,2581.9,0.07577704]
[1646921299333,0.05089716,2582.0,2581.9,0.07646624]
[1646921302087,0.59366769,2582.4,2581.9,0.53746624]
[1646921302288,8.5338139,2582.9,2581.9,0.98096624]
[1646921302486,1.60594666,2582.8,2581.9,0.98096624]
[1646921302689,0.05565872,2582.7,2582.0,0.1935]
[1646921302887,0.05565872,2582.7,2582.1,0.461]
[1646921303297,0.05565872,2582.7,2582.2,1.19952578]
[1646921303587,0.05565872,2582.7,2582.3,0.461]
[1646921304235,0.04738028,2582.9,2582.3,0.461]